bitfinex/quotes_BTCUSD_20230907
["timestamp","ask_amount","ask_price","bid_price","bid_amount"]
[1694045771131,0.41829094,25787.0,25786.0,2.87158149]
[1694045771690,0.41829094,25787.0,25786.0,2.84008727]
[1694045772049,0.41829094,25787.0,25786.0,2.87043584]
[1694045777782,0.48803126,25787.0,25786.0,2.87043584]
[1694045778740,0.41829094,25787.0,25786.0,2.87043584]
[1694045784155,0.41829094,25787.0,25786.0,0.1266]
[1694045784748,0.41829094,25787.0,25786.0,0.902214]
[1694045785386,0.41829094,25787.0,25786.0,1.677828]
[1694045786241,0.69740323,25787.0,25786.0,1.677828]
[1694045786658,0.41829094,25787.0,25786.0,1.677828]
[1694045786857,0.69740323,25787.0,25786.0,1.677828]
[1694045787278,0.41829094,25787.0,25786.0,1.677828]
[1694045790318,0.41829094,25787.0,25786.0,0.902214]
[1694045792742,0.69740323,25787.0,25786.0,0.902214]
[1694045793903,0.69740323,25787.0,25786.0,1.677828]
[1694045794705,0.69740323,25787.0,25786.0,0.902214]
[1694045794881,0.79008695,25787.0,25786.0,0.902214]
[1694045795637,0.79008695,25787.0,25786.0,1.677828]
[1694045798446,0.79008695,25787.0,25786.0,1.677828]
[1694045799232,0.51097466,25787.0,25786.0,1.677828]
[1694045799849,0.51097466,25787.0,25786.0,2.453442]
[1694045800384,0.79008695,25787.0,25786.0,2.453442]
[1694045800798,0.51097466,25787.0,25786.0,2.453442]
[1694045801881,0.11373087,25787.0,25786.0,2.453442]
[1694045802083,0.40116403,25787.0,25786.0,2.453442]
[1694045803290,0.68050293,25787.0,25786.0,2.453442]
[1694045805420,0.40116403,25787.0,25786.0,2.453442]
[1694045809698,0.68050293,25787.0,25786.0,2.453442]
[1694045812765,0.6769766,25787.0,25786.0,2.453442]
[1694045816169,0.76761766,25787.0,25786.0,2.453442]
[1694045818894,0.6769766,25787.0,25786.0,2.453442]
[1694045824305,0.6769766,25787.0,25786.0,2.47488042]
[1694045836297,0.3976377,25787.0,25786.0,2.47488042]
[1694045836495,0.29704597,25787.0,25786.0,2.47488042]
[1694045836696,0.01752082,25787.0,25786.0,2.47488042]
[1694045836898,0.3976377,25787.0,25786.0,2.47488042]
[1694045837310,0.29704551,25787.0,25786.0,2.47488042]
[1694045837459,0.67716239,25787.0,25786.0,2.47488042]
[1694045863796,0.67716239,25787.0,25786.0,2.35428042]
[1694045864009,0.67716239,25787.0,25786.0,2.47488042]
[1694045870634,0.67716239,25787.0,25786.0,1.69926642]
[1694045870858,0.67716172,25787.0,25786.0,1.69926642]
[1694045871202,0.67716376,25787.0,25786.0,1.69926642]
[1694045877377,0.67716376,25787.0,25786.0,2.47488042]
[1694045917551,0.3976377,25787.0,25786.0,2.47488042]
[1694045919646,0.67716376,25787.0,25786.0,2.47488042]
[1694045919872,0.3976377,25787.0,25786.0,2.47488042]
[1694045920281,0.67716376,25787.0,25786.0,2.47488042]
[1694045923682,0.67716376,25787.0,25786.0,2.49144272]
[1694045923905,0.3976377,25787.0,25786.0,2.453442]
[1694045924374,0.3976377,25787.0,25786.0,2.48650029]
[1694045926381,0.3976377,25787.0,25786.0,3.60464919]
[1694045926788,0.3976377,25787.0,25786.0,2.48650029]
[1694045926989,0.25038714,25787.0,25786.0,2.48650029]
[1694045927212,0.63050402,25787.0,25786.0,2.48650029]
[1694045927640,0.3976377,25787.0,25786.0,2.48650029]
[1694045932766,0.01752082,25787.0,25786.0,2.48650029]
[1694045932970,0.3976377,25787.0,25786.0,2.48650029]
[1694045933805,0.63045438,25787.0,25786.0,2.48650029]
[1694045941712,0.63043657,25787.0,25786.0,2.48650029]
[1694045941950,0.3976377,25787.0,25786.0,2.48650029]
[1694045956736,0.01752082,25787.0,25786.0,2.48650029]
[1694045956912,0.39542294,25787.0,25786.0,2.48650029]
[1694045957200,0.37790212,25787.0,25786.0,2.48650029]
[1694045957446,0.01744391,25787.0,25786.0,2.48650029]
[1694045957641,0.39534603,25787.0,25786.0,2.48650029]
[1694045992721,0.39534603,25787.0,25786.0,1.71088629]
[1694045993244,0.67474192,25787.0,25786.0,1.71088629]
[1694045993939,0.67474192,25787.0,25786.0,2.48650029]
[1694045994180,0.67474192,25787.0,25786.0,1.71088629]
[1694045998401,0.67474192,25787.0,25786.0,2.48650029]
[1694046000378,0.39534603,25787.0,25786.0,2.48650029]
[1694046000801,0.39534603,25787.0,25786.0,1.71088629]
[1694046002922,0.48489661,25787.0,25786.0,2.48650029]
[1694046003143,0.48489661,25787.0,25786.0,1.71088629]
[1694046003482,0.39534603,25787.0,25786.0,1.71088629]
[1694046004691,0.39534603,25787.0,25786.0,2.48650029]
[1694046007031,0.67474192,25787.0,25786.0,2.48650029]
[1694046009794,0.39534603,25787.0,25786.0,2.48650029]
[1694046010638,0.67474192,25787.0,25786.0,2.48650029]
[1694046010840,0.39534603,25787.0,25786.0,2.48650029]
[1694046011173,0.67474192,25787.0,25786.0,2.48650029]
[1694046011586,0.39534603,25787.0,25786.0,2.48650029]
[1694046011991,0.67474192,25787.0,25786.0,2.48650029]
[1694046012388,0.39534603,25787.0,25786.0,2.48650029]
[1694046013235,0.67474192,25787.0,25786.0,2.48650029]
[1694046013638,0.39534603,25787.0,25786.0,2.48650029]
[1694046023755,0.67474192,25787.0,25786.0,2.48650029]
[1694046025819,0.01744391,25787.0,25786.0,2.48650029]
[1694046026059,0.29689606,25787.0,25786.0,2.48650029]
[1694046026404,0.67207287,25787.0,25786.0,2.48650029]
[1694046032752,0.67207287,25787.0,25786.0,2.453442]
[1694046033155,0.98056395,25787.0,25786.0,0.1266]
[1694046033359,0.98056395,25787.0,25786.0,0.006]
[1694046033360,2.61860507,25787.0,25786.0,0.006]
[1694046033577,3.79063283,25787.0,25786.0,0.006]
[1694046033804,4.26612181,25787.0,25786.0,0.006]
[1694046033981,4.26918181,25787.0,25786.0,0.006]
[1694046034178,4.26774181,25787.0,25786.0,0.006]
[1694046034377,4.26456181,25787.0,25786.0,0.006]
[1694046034646,4.26402181,25787.0,25786.0,0.004]
[1694046034848,0.04,25783.0,25781.0,0.1206]
[1694046034965,0.35604134,25783.0,25781.0,0.1206]
[1694046035175,0.57792014,25782.0,25781.0,0.1206]
[1694046035382,0.5940317,25782.0,25781.0,0.1206]
[1694046036272,0.5940317,25782.0,25781.0,0.1326]
[1694046036445,0.5940317,25782.0,25781.0,0.1206]
[1694046036788,0.5940317,25782.0,25781.0,0.1396]
[1694046036789,0.80628027,25782.0,25781.0,0.1396]
[1694046037613,0.80628027,25782.0,25781.0,0.019]
[1694046037825,0.80828027,25782.0,25781.0,0.04]
[1694046038238,0.80828027,25782.0,25781.0,0.1606]
[1694046040424,1.04066638,25782.0,25781.0,0.1606]
[1694046042623,1.04066638,25782.0,25781.0,0.04]
[1694046042826,1.04280028,25782.0,25781.0,0.04]
[1694046047387,3.14301626,25782.0,25781.0,0.04]
[1694046047587,3.42480702,25782.0,25781.0,0.04]
[1694046047762,3.16601626,25782.0,25781.0,0.04]
[1694046049057,2.96943108,25782.0,25781.0,0.04]
[1694046049493,3.14720059,25782.0,25781.0,0.04]
[1694046051328,2.96943108,25782.0,25781.0,0.04]
[1694046052282,3.20657505,25782.0,25781.0,0.04]
[1694046052483,2.96943108,25782.0,25781.0,0.04]
[1694046053553,3.35607635,25782.0,25781.0,0.04]
[1694046053763,3.58025534,25782.0,25781.0,0.04]
[1694046053944,3.35607635,25782.0,25781.0,0.04]
[1694046054843,4.00024335,25782.0,25781.0,0.04]
[1694046055050,0.08,25777.0,25772.0,1.69359322]
[1694046055262,0.09282992,25774.0,25772.0,1.69359322]
[1694046055472,0.03679624,25773.0,25772.0,1.69359322]
[1694046055888,0.09282992,25774.0,25772.0,1.69359322]
[1694046056319,0.38664527,25773.0,25772.0,0.017]
[1694046056539,1.50651338,25773.0,25772.0,0.017]
[1694046056953,1.33848019,25773.0,25772.0,0.028]
[1694046057161,0.92883492,25773.0,25772.0,0.04635929]
[1694046057395,0.15282992,25773.0,25772.0,0.16695929]
[1694046057576,0.062,25773.0,25772.0,0.16095929]
[1694046058004,0.064,25773.0,25772.0,0.18495929]
[1694046058438,0.07638027,25773.0,25772.0,0.18495929]
[1694046058947,0.07638027,25773.0,25772.0,0.1832046]
[1694046064568,0.85238527,25773.0,25772.0,0.1832046]
[1694046064964,0.85238527,25773.0,25772.0,0.1556]
[1694046069460,1.62839027,25773.0,25772.0,0.1556]
[1694046069669,1.72122019,25773.0,25772.0,0.1556]
[1694046070631,1.62839027,25773.0,25772.0,0.1556]
[1694046071271,1.94063314,25773.0,25772.0,0.1556]
[1694046071724,2.03346306,25773.0,25772.0,0.1556]
[1694046071871,2.01346306,25773.0,25772.0,0.1556]
[1694046072075,2.03346306,25773.0,25772.0,0.1556]
[1694046074068,2.25831162,25773.0,25772.0,0.1556]
[1694046075414,2.3975565,25773.0,25772.0,0.1556]
[1694046075659,0.776005,25773.0,25772.0,0.1556]
[1694046075861,0.78790265,25773.0,25772.0,0.1556]
[1694046076059,0.92696444,25773.0,25772.0,0.1556]
[1694046076498,0.92696444,25773.0,25772.0,0.39523701]
[1694046076667,1.7956967,25773.0,25772.0,0.39523701]
[1694046077532,1.70296944,25773.0,25772.0,0.39523701]
[1694046078348,1.70296944,25773.0,25772.0,0.41523701]
[1694046080248,1.98560009,25773.0,25772.0,0.41523701]
[1694046081771,1.70296944,25773.0,25772.0,0.41523701]
[1694046083839,1.88858519,25773.0,25772.0,0.41523701]
[1694046085495,1.7495234,25773.0,25772.0,0.41523701]
[1694046086053,2.07798143,25773.0,25772.0,0.41523701]
[1694046086476,1.88876351,25773.0,25772.0,0.41523701]
[1694046086675,1.88876351,25773.0,25772.0,0.29463701]
[1694046087012,1.70314776,25773.0,25772.0,0.29463701]
[1694046087201,1.88876351,25773.0,25772.0,0.29463701]
[1694046087698,1.7495234,25773.0,25772.0,0.29463701]
[1694046087935,2.2924857,25773.0,25772.0,0.29463701]
[1694046088347,2.67913097,25773.0,25772.0,0.29463701]
[1694046089190,2.67913097,25773.0,25772.0,0.055]
[1694046089421,2.49351522,25773.0,25772.0,0.055]
[1694046090062,2.10686995,25773.0,25772.0,0.055]
[1694046090275,2.10686995,25773.0,25772.0,0.02]
[1694046090682,2.11086995,25773.0,25772.0,0.068]
[1694046093545,1.87879515,25773.0,25772.0,0.068]
[1694046097272,2.65480015,25773.0,25772.0,0.068]
[1694046097468,2.92137155,25773.0,25772.0,0.048]
[1694046097811,2.92137155,25773.0,25772.0,0.068]
[1694046098156,2.65480015,25773.0,25772.0,0.068]
[1694046098351,2.93328991,25773.0,25772.0,0.068]
[1694046100333,3.06279657,25773.0,25772.0,0.068]
[1694046105779,3.342028,25773.0,25772.0,0.068]
[1694046106441,2.93403158,25773.0,25772.0,0.068]
[1694046106648,3.3413202,25773.0,25772.0,0.068]
[1694046106889,2.93403158,25773.0,25772.0,0.068]
[1694046110446,3.32067685,25773.0,25772.0,0.068]
[1694046112841,3.44874475,25773.0,25772.0,0.068]
[1694046113707,3.72799877,25773.0,25772.0,0.068]
[1694046114321,3.32069944,25773.0,25772.0,0.068]
[1694046117156,3.7273241,25773.0,25772.0,0.068]
[1694046117956,3.4470525,25773.0,25772.0,0.068]
[1694046123918,3.4450525,25773.0,25772.0,0.044]
[1694046124172,3.4430525,25773.0,25772.0,0.02]
[1694046124294,3.4470525,25773.0,25772.0,0.057]
[1694046124694,3.4450525,25773.0,25772.0,0.039]
[1694046125121,3.4470525,25773.0,25772.0,0.057]
[1694046125552,3.4450525,25773.0,25772.0,0.038]
[1694046125757,3.4470525,25773.0,25772.0,0.057]
[1694046148062,3.77759286,25773.0,25772.0,0.057]
[1694046148268,3.80059286,25773.0,25772.0,0.057]
[1694046150102,3.80044456,25773.0,25772.0,0.057]
[1694046155989,4.18708983,25773.0,25772.0,0.057]
[1694046164403,3.87270804,25773.0,25772.0,0.057]
[1694046165264,4.18695498,25773.0,25772.0,0.057]
[1694046173705,4.09290866,25773.0,25772.0,0.037]
[1694046173935,5.21777366,25773.0,25772.0,0.037]
[1694046174134,5.21777366,25773.0,25772.0,0.019]
[1694046174135,5.18697366,25773.0,25772.0,0.019]
[1694046174336,5.18539366,25773.0,25772.0,0.028]
[1694046174538,5.18303366,25773.0,25772.0,0.009]
[1694046174737,5.18315366,25773.0,25772.0,0.009]
[1694046174949,5.18351366,25773.0,25772.0,0.011]
[1694046175154,0.02,25770.0,25769.0,0.02]
[1694046175363,3.18830528,25770.0,25769.0,0.02]
[1694046175574,3.20093245,25770.0,25769.0,0.02]
[1694046175774,3.60642591,25770.0,25769.0,0.02]
[1694046176271,3.65999615,25770.0,25769.0,0.02]
[1694046177330,3.70155116,25770.0,25769.0,0.022]
[1694046177758,3.72555116,25770.0,25769.0,0.024]
[1694046178392,4.00464854,25770.0,25769.0,0.024]
[1694046178613,0.71005157,25770.0,25769.0,0.024]
[1694046179055,1.48614757,25770.0,25769.0,0.024]
[1694046180364,0.66949656,25770.0,25769.0,0.024]
[1694046180576,0.37039918,25770.0,25769.0,0.800126]
[1694046181011,0.37039918,25770.0,25769.0,0.024]
[1694046182454,0.64949656,25770.0,25769.0,0.10514477]
[1694046182697,0.37039918,25770.0,25769.0,0.22574477]
[1694046182888,0.37039918,25770.0,25769.0,2.66031055]
[1694046183107,0.24671191,25770.0,25769.0,3.77574927]
[1694046183324,0.2806145,25770.0,25769.0,4.89459323]
[1694046183555,0.14104765,25770.0,25769.0,3.77574927]
[1694046184001,0.14104765,25770.0,25769.0,3.77374927]
[1694046184002,0.2566145,25770.0,25769.0,3.77374927]
[1694046184428,0.2726145,25770.0,25769.0,3.77574927]
[1694046184635,0.2486145,25770.0,25769.0,3.77374927]
[1694046184858,0.2326145,25770.0,25769.0,3.77174927]
[1694046185073,0.2346145,25770.0,25769.0,3.79174927]
[1694046185966,0.09504765,25770.0,25769.0,3.79174927]
[1694046186857,0.2346145,25770.0,25769.0,3.79174927]
[1694046187767,0.09504765,25770.0,25769.0,3.79174927]
[1694046194017,0.002,25770.0,25769.0,3.79174927]
[1694046195586,0.002,25770.0,25769.0,5.35114842]
[1694046195796,0.002,25770.0,25769.0,5.37114842]
[1694046196009,0.002,25770.0,25769.0,2.26664442]
[1694046196215,0.002,25770.0,25769.0,3.04277042]
[1694046196422,0.002,25770.0,25769.0,3.80789642]
[1694046196423,0.001,25770.0,25769.0,3.80789642]
[1694046196630,0.002,25770.0,25769.0,4.59302242]
[1694046196843,0.09304765,25773.0,25772.0,0.12]
[1694046197053,0.09304765,25773.0,25772.0,2.99535327]
[1694046197267,0.2326145,25774.0,25773.0,0.04]
[1694046197471,0.2326145,25774.0,25773.0,2.87526027]
[1694046197884,0.2326145,25774.0,25773.0,2.91526027]
[1694046198131,0.2326145,25775.0,25774.0,0.06]
[1694046198350,0.2326145,25775.0,25774.0,2.89517027]
[1694046198504,0.09304765,25775.0,25774.0,2.89517027]
[1694046199702,0.09304765,25775.0,25774.0,2.11919527]
[1694046199902,0.09304765,25775.0,25774.0,2.3462148]
[1694046200107,0.09704765,25775.0,25774.0,2.5015198]
[1694046200314,0.09704765,25775.0,25774.0,3.2774948]
[1694046200522,0.09304765,25775.0,25774.0,3.2774948]
[1694046200725,0.09304765,25775.0,25774.0,3.25626201]
[1694046200929,0.09304765,25775.0,25774.0,3.05947527]
[1694046201988,0.2326145,25776.0,25774.0,3.05947527]
[1694046202190,0.2326145,25776.0,25775.0,0.50724527]
[1694046202395,0.2326145,25776.0,25775.0,2.83508027]
[1694046203059,0.2366145,25776.0,25775.0,2.83508027]
[1694046203264,0.09704765,25776.0,25775.0,3.0914887]
[1694046203474,0.10004765,25776.0,25775.0,3.0914887]
[1694046204098,0.09304765,25776.0,25775.0,3.0914887]
[1694046204302,0.09704765,25776.0,25775.0,3.0914887]
[1694046204479,0.10004765,25776.0,25775.0,3.0914887]
[1694046204907,0.09604765,25776.0,25775.0,3.0914887]
[1694046205668,0.09304765,25776.0,25775.0,3.0914887]
[1694046205873,0.09304765,25776.0,25775.0,3.0964887]
[1694046206554,0.09304765,25776.0,25775.0,3.1004887]
[1694046208153,0.10458852,25776.0,25775.0,3.1004887]
[1694046210747,0.09958852,25776.0,25775.0,3.1004887]
[1694046217520,0.09958852,25776.0,25775.0,2.71384343]
[1694046218560,0.23915537,25776.0,25775.0,2.71384343]
[1694046220392,0.15110772,25776.0,25775.0,2.71384343]
[1694046221833,0.33719246,25776.0,25775.0,2.71384343]
[1694046222247,0.19762561,25776.0,25775.0,2.71384343]
[1694046223751,0.51339544,25776.0,25775.0,2.71384343]
[1694046224132,0.74599751,25776.0,25775.0,2.71384343]
[1694046224327,0.55991277,25776.0,25775.0,2.71384343]
[1694046227642,0.3273107,25776.0,25775.0,2.71384343]
[1694046228026,0.55978543,25776.0,25775.0,2.71384343]
[1694046228228,0.3273107,25776.0,25775.0,2.71384343]
[1694046232861,0.3273107,25776.0,25775.0,2.497435]
[1694046233068,0.3273107,25776.0,25775.0,0.049]
[1694046233069,0.60640808,25776.0,25775.0,0.049]
[1694046233544,0.60640808,25776.0,25775.0,0.824945]
[1694046233545,0.3273107,25776.0,25775.0,0.824945]
[1694046237043,0.43445847,25776.0,25775.0,0.824945]
[1694046237241,0.3273107,25776.0,25775.0,0.824945]
[1694046237647,0.60643643,25776.0,25775.0,0.824945]
[1694046238699,0.3273107,25776.0,25775.0,0.824945]
[1694046238875,0.29068616,25776.0,25775.0,0.824945]
[1694046239079,0.60645599,25776.0,25775.0,0.824945]
[1694046240090,0.3273107,25776.0,25775.0,0.824945]
[1694046240327,0.43445847,25776.0,25775.0,0.824945]
[1694046240528,0.43445847,25776.0,25775.0,0.049]
[1694046240529,0.34255166,25776.0,25775.0,0.049]
[1694046240865,0.34255166,25776.0,25775.0,0.029]
[1694046241269,0.34255166,25776.0,25775.0,0.024]
[1694046241635,0.35455166,25776.0,25775.0,0.025]
[1694046241842,0.34255166,25776.0,25775.0,0.02]
[1694046242042,0.35255166,25776.0,25775.0,0.021]
[1694046242264,0.36455166,25776.0,25775.0,0.022]
[1694046242443,0.35455166,25776.0,25775.0,0.021]
[1694046243820,0.36455166,25776.0,25775.0,0.022]
[1694046244870,0.71840178,25776.0,25775.0,0.022]
[1694046251256,0.36455166,25776.0,25775.0,0.022]
[1694046261381,0.75119693,25776.0,25775.0,0.022]
[1694046261584,0.75119693,25776.0,25775.0,0.002]
[1694046261585,3.10194193,25776.0,25775.0,0.002]
[1694046261795,3.51356314,25776.0,25775.0,0.022]
[1694046262220,3.88555756,25776.0,25775.0,0.022]
[1694046262393,3.10964256,25776.0,25775.0,0.022]
[1694046265593,1.18581814,25776.0,25775.0,0.022]
[1694046265925,0.77419693,25776.0,25775.0,0.022]
[1694046275121,1.08825823,25776.0,25775.0,0.022]
[1694046283833,0.77419693,25776.0,25775.0,0.022]
[1694046290553,1.08850837,25776.0,25775.0,0.022]
[1694046290884,1.0769675,25776.0,25775.0,0.022]
[1694046292193,0.76265606,25776.0,25775.0,0.022]
[1694046294655,1.07697025,25776.0,25775.0,0.022]
[1694046294863,0.76265606,25776.0,25775.0,0.022]
[1694046295269,1.07697246,25776.0,25775.0,0.022]
[1694046295492,0.76265606,25776.0,25775.0,0.022]
[1694046298063,0.35301079,25776.0,25775.0,0.797945]
[1694046298263,0.35155832,25776.0,25775.0,2.349835]
[1694046298470,0.66732815,25776.0,25775.0,2.349835]
[1694046302662,0.66732815,25776.0,25775.0,1.57389]
[1694046303185,0.67690704,25776.0,25775.0,1.57389]
[1694046303389,0.67690704,25776.0,25775.0,1.76389]
[1694046307939,0.67690704,25776.0,25775.0,0.987945]
[1694046317800,0.36258968,25776.0,25775.0,0.987945]
[1694046318023,0.67690704,25776.0,25775.0,0.987945]
[1694046321710,0.36258968,25776.0,25775.0,0.987945]
[1694046321914,0.67690704,25776.0,25775.0,0.987945]
[1694046323379,0.67883511,25776.0,25775.0,0.987945]
[1694046326199,0.66925622,25776.0,25775.0,0.987945]
[1694046332147,0.66925622,25776.0,25775.0,0.212]
[1694046333056,0.66925622,25776.0,25775.0,0.022]
[1694046362503,0.66925622,25776.0,25775.0,0.212]
[1694046365128,0.67875974,25776.0,25775.0,0.212]
[1694046373401,0.67875974,25776.0,25775.0,0.213]
[1694046374522,0.66925622,25776.0,25775.0,0.213]
[1694046384217,1.01032613,25776.0,25775.0,0.213]
[1694046387058,0.66925622,25776.0,25775.0,0.213]
[1694046393091,0.68106926,25776.0,25775.0,0.213]
[1694046400604,0.36680304,25776.0,25775.0,0.213]
[1694046412567,0.68106926,25776.0,25775.0,0.213]
[1694046412775,0.36680304,25776.0,25775.0,0.213]
[1694046412987,0.68106926,25776.0,25775.0,0.213]
[1694046415576,0.94573277,25776.0,25775.0,0.213]
[1694046417061,0.63146655,25776.0,25775.0,0.213]
[1694046418480,0.94573277,25776.0,25775.0,0.213]
[1694046418978,0.31371751,25776.0,25775.0,0.213]
[1694046419426,0.63099562,25776.0,25775.0,0.213]
[1694046419872,0.94521919,25776.0,25775.0,0.213]
[1694046424881,3.63932493,25776.0,25775.0,0.193]
[1694046425163,3.63932493,25776.0,25770.0,0.02]
[1694046425164,0.02,25773.0,25770.0,0.02]
[1694046425391,1.86628652,25771.0,25770.0,0.02]
[1694046425596,2.18356463,25771.0,25770.0,0.02]
[1694046425802,1.89241011,25771.0,25770.0,0.02]
[1694046426466,1.89241011,25771.0,25770.0,0.022]
[1694046426670,1.89241011,25771.0,25770.0,0.02]
[1694046426871,2.27905538,25771.0,25770.0,0.02]
[1694046427076,3.49245534,25771.0,25770.0,0.022]
[1694046427776,3.50817086,25771.0,25770.0,0.022]
[1694046428007,3.48745534,25771.0,25770.0,0.022]
[1694046428256,3.50945534,25771.0,25770.0,0.024]
[1694046428529,3.89610061,25771.0,25770.0,0.004]
[1694046428769,3.99170061,25771.0,25770.0,0.004]
[1694046429002,3.98594061,25771.0,25770.0,0.004]
[1694046429246,3.98348061,25771.0,25770.0,0.004]
[1694046429454,3.91610061,25771.0,25770.0,0.004]
[1694046432196,3.93301891,25771.0,25770.0,0.004]
[1694046432841,4.21162874,25771.0,25770.0,0.004]
[1694046433270,3.79829478,25771.0,25770.0,0.004]
[1694046433474,3.80936318,25771.0,25770.0,0.004]
[1694046433894,1.59197608,25771.0,25770.0,0.004]
[1694046437776,2.36804208,25771.0,25770.0,0.004]
[1694046438008,3.14410808,25771.0,25770.0,0.004]
[1694046438212,3.42271791,25771.0,25770.0,0.004]
[1694046438417,3.14410808,25771.0,25770.0,0.004]
[1694046438617,3.53075335,25771.0,25770.0,0.004]
[1694046449588,3.51383505,25771.0,25770.0,0.004]
[1694046451794,3.8116957,25771.0,25770.0,0.004]
[1694046453985,3.79244488,25771.0,25770.0,0.004]
[1694046454186,3.80750516,25771.0,25770.0,0.004]
[1694046457303,4.21060861,25771.0,25770.0,0.004]
[1694046457516,3.93199878,25771.0,25770.0,0.004]
[1694046458261,4.21104903,25771.0,25770.0,0.004]
[1694046459267,3.93246357,25771.0,25770.0,0.004]
[1694046463454,0.79791475,25771.0,25770.0,0.004]
[1694046463648,1.17041251,25771.0,25770.0,0.004]
[1694046464787,1.94647851,25771.0,25770.0,0.004]
[1694046465234,2.35004675,25771.0,25770.0,0.004]
[1694046465901,2.72254451,25771.0,25770.0,0.004]
[1694046466155,3.12611275,25771.0,25770.0,0.004]
[1694046466645,3.51275802,25771.0,25770.0,0.004]
[1694046466832,3.53157349,25771.0,25770.0,0.004]
[1694046470710,3.84572801,25771.0,25770.0,0.004]
[1694046477526,3.53157349,25771.0,25770.0,0.004]
[1694046477727,3.55457349,25771.0,25770.0,0.004]
[1694046485256,3.61541798,25771.0,25770.0,0.004]
[1694046500053,3.55457349,25771.0,25770.0,0.004]
[1694046514418,3.53575802,25771.0,25770.0,0.004]
[1694046515991,3.55139603,25771.0,25770.0,0.004]
[1694046516763,3.55139603,25771.0,25770.0,0.0038879]
[1694046559076,3.54850803,25771.0,25770.0,0.0038879]
[1694046560254,3.16186276,25771.0,25770.0,0.0038879]
[1694046564102,3.22270961,25771.0,25770.0,0.0038879]
[1694046566082,3.22270961,25771.0,25770.0,0.0238879]
[1694046572699,3.71431687,25771.0,25770.0,0.0238879]
[1694046572999,3.72921919,25771.0,25770.0,0.0238879]
[1694046573208,4.11586446,25771.0,25770.0,0.0238879]
[1694046576576,3.99526446,25771.0,25770.0,0.0238879]
[1694046581337,3.99396334,25771.0,25770.0,0.0238879]
[1694046584552,3.97906102,25771.0,25770.0,0.0238879]
[1694046584959,3.22108105,25771.0,25770.0,0.0238879]
[1694046585444,0.89288305,25771.0,25770.0,0.0238879]
[1694046585662,0.485215,25771.0,25770.0,0.0238879]
[1694046587047,0.48754533,25771.0,25770.0,0.0238879]
[1694046587258,0.79942251,25771.0,25770.0,0.0238879]
[1694046587693,0.74111194,25771.0,25770.0,1.5760799]
[1694046587897,0.73293154,25771.0,25770.0,0.7999839]
[1694046588737,0.73293154,25771.0,25770.0,0.0238879]
[1694046602003,0.41872403,25771.0,25770.0,0.0238879]
[1694046603985,0.73293154,25771.0,25770.0,0.0238879]
[1694046606425,1.81869702,25771.0,25770.0,0.0238879]
[1694046606626,3.40853468,25771.0,25770.0,0.0238879]
[1694046606834,3.81620273,25771.0,25770.0,0.0238879]
[1694046608015,3.04013673,25771.0,25770.0,0.0238879]
[1694046611737,3.038316,25771.0,25770.0,0.0238879]
[1694046617391,2.26225,25771.0,25770.0,0.0238879]
[1694046617600,1.16177886,25771.0,25770.0,0.0238879]
[1694046617804,0.41797126,25771.0,25770.0,0.87224609]
[1694046618895,0.41797126,25771.0,25770.0,1.64834209]
[1694046625452,0.41797126,25771.0,25770.0,0.87224609]
[1694046634574,0.35712441,25771.0,25770.0,3.17792698]
[1694046634800,0.58984132,25771.0,25770.0,3.01942117]
[1694046635023,0.54329885,25771.0,25770.0,3.01942117]
[1694046635241,0.18556189,25771.0,25770.0,3.01942117]
[1694046635677,0.18556189,25771.0,25770.0,3.17474917]
[1694046635892,0.16356189,25771.0,25770.0,3.17274917]
[1694046636092,0.15956189,25771.0,25770.0,3.17286127]
[1694046636302,0.12401027,25771.0,25770.0,3.17386127]
[1694046636518,0.10401027,25771.0,25770.0,3.17186127]
[1694046636929,0.11501027,25771.0,25770.0,3.17286127]
[1694046639292,0.022,25771.0,25770.0,3.17286127]
[1694046643173,0.022,25771.0,25770.0,3.20357628]
[1694046646329,0.022,25771.0,25770.0,3.21509673]
[1694046650627,0.022,25771.0,25770.0,3.62309673]
[1694046650846,0.022,25771.0,25770.0,4.87979273]
[1694046651065,0.18617444,25775.0,25770.0,4.87979273]
[1694046651066,0.23257216,25775.0,25774.0,0.16]
[1694046651279,0.09301027,25775.0,25774.0,3.70934527]
[1694046651487,0.09301027,25775.0,25774.0,3.82994527]
[1694046652326,0.10201027,25775.0,25774.0,3.82994527]
[1694046652760,0.09301027,25775.0,25774.0,3.82994527]
[1694046652972,0.09501027,25775.0,25774.0,3.82994527]
[1694046653230,0.09501027,25775.0,25774.0,4.05276574]
[1694046659338,0.10439553,25775.0,25774.0,4.05276574]
[1694046660094,0.10439553,25775.0,25774.0,3.91396574]
[1694046660295,0.10439553,25775.0,25774.0,3.99396574]
[1694046661324,0.15094715,25775.0,25774.0,3.99396574]
[1694046661525,0.24378429,25775.0,25774.0,3.93396574]
[1694046662097,0.15094715,25775.0,25774.0,3.94450336]
[1694046664349,0.01138526,25775.0,25774.0,3.72168289]
[1694046664782,0.01138526,25775.0,25774.0,3.953458]
[1694046664985,0.10423989,25775.0,25774.0,3.953458]
[1694046665192,0.01138526,25775.0,25774.0,3.953458]
[1694046665398,0.10423989,25775.0,25774.0,3.953458]
[1694046669227,0.10423989,25775.0,25774.0,3.72168289]
[1694046669641,0.10423989,25775.0,25774.0,3.96665068]
[1694046669847,0.10423989,25775.0,25774.0,3.72168289]
[1694046670478,0.10423989,25775.0,25774.0,3.97618944]
[1694046672185,0.10423989,25775.0,25774.0,3.72168289]
[1694046673045,0.10423989,25775.0,25774.0,3.90805463]
[1694046674228,0.24380178,25775.0,25774.0,3.90805463]
[1694046675212,0.15094715,25775.0,25774.0,3.72168289]
[1694046677167,0.33712159,25775.0,25774.0,3.72168289]
[1694046677332,0.33712159,25775.0,25774.0,3.93526455]
[1694046678135,0.1975597,25775.0,25774.0,3.93526455]
[1694046679389,0.48671995,25775.0,25774.0,3.93526455]
[1694046679597,0.71943686,25775.0,25774.0,3.93526455]
[1694046679806,0.48671995,25775.0,25774.0,3.93526455]
[1694046680007,0.71943686,25775.0,25774.0,3.93526455]
[1694046680371,0.53326242,25775.0,25774.0,3.93526455]
[1694046694778,0.30054551,25775.0,25774.0,3.93526455]
[1694046695804,0.30054551,25775.0,25774.0,5.05400852]
[1694046698473,0.30054551,25775.0,25774.0,4.84042686]
[1694046699570,0.30054551,25775.0,25774.0,5.07641926]